[Event "Match UKR vs KGZ 2021"]
[Site "Online"]
[Date "2021.02.14"]
[Round "1.6"]
[White "Sharshenbekov, Emir"]
[Black "Tulchynskyi, Feliks"]
[Result "1/2-1/2"]
[ECO "B22"]
[WhiteElo "1238"]
[BlackElo "1851"]
[Annotator "NA RC"]
[PlyCount "132"]
[EventDate "2021.02.14"]
[EventType "team-tourn"]
[EventCountry "NET"]
[SourceTitle "playchess.com"]
[Source "ChessBase"]
[SourceQuality "1"]
[WhiteTeam "Kyrgyzstan"]
[BlackTeam "Ukraine"]
[WhiteTeamCountry "KGZ"]
[BlackTeamCountry "UKR"]
[TimeControl "900+10"]

{[%evp 12,120,21,23,26,14,26,22,24,4,0,0,0,0,32767,-21,-8,0,-2,-21,-27,-25,0,-13,-7,-22,-16,0,0,0,0,0,16,11,32767,32767,32767,32767,32767,32767,32767,32767,32767,32767,32767,32767,-18,-6,-12,-4,-6,-30,-37,-30,-26,-56,-64,-139,-29,-39,32767,32767,32767,32767,32767,32767,32767,32767,32767,32767,32767,32767,32767,32767,32767,32767,32767,32767,32767,-191,-259,-221,32767,32767,32767,32767,32767,32767,32767,32767,32767,32767,32767,32767,32767,32767,32767,32767,32767,32767,-16,-29,-8,-8,-8,-8,-8,-12,-8,-8,0]} 1. e4 {[%emt 0:00:00]} c5 {[%emt 0:00:13]} 2. c3 {[%emt 0:00:07]} d5 {[%emt 0:00:17]} 3. exd5 {[%emt 0:00:10]} Qxd5 {[%emt 0:00:05]} 4. d4 {[%emt 0:00:26]} Nf6 {[%emt 0:00:30]} 5. Nf3 {[%emt 0:00:24]} cxd4 {[%emt 0:00:26]} 6. cxd4 {[%emt 0:00:08]} e6 {[%emt 0:00:26]} 7. Nc3 {[%emt 0:00:18]} Qd8 {[%emt 0:00:07]} 8. Bd3 {[%emt 0:00:30] 8.Bd3 is better than 8.Bc4.} Nc6 {[%emt 0:00:19]} 9. O-O {[%emt 0:00:19]} Be7 {[%emt 0:00:13]} 10. h3 {[%emt 0:00:18]} O-O {[%emt 0:00:08]} 11. Be3 {[%emt 0:00:03]} b6 {[%emt 0:00:17]} 12. Rc1 {[%emt 0:01:22]} Bb7 {[%emt 0:00:22]} 13. Bb1 {[%emt 0:01:00]} Nb4 {[%emt 0:01:01] [#]} 14. Ne5 $146 {[%emt 0:01:02]} ({Predecessor:} 14. a3 Nbd5 15. Nxd5 Qxd5 16. Qe2 Qh5 17. Rc7 Bxf3 18. Qxf3 Qxf3 19. gxf3 Nd5 20. Rb7 Rfb8 21. Rd7 Rd8 22. Rb7 Rdb8 23. Rd7 Rd8 {½-½ (23) Sahin,O (2042)-Radovanovic,N (2392) Paracin 2016}) 14... Rc8 {[%emt 0:01:02]} 15. Qd2 {[%emt 0:00:49]} Nbd5 {[%emt 0:01:10]} 16. Bg5 {[%emt 0:01:28]} Nd7 {[%emt 0:01:11]} 17. Bxe7 {[%emt 0:00:30]} Qxe7 {[%emt 0:00:18]} 18. f4 {[%emt 0:00:10]} Rfd8 {[%emt 0:00:42]} 19. Nxd7 {[%emt 0:01:47]} Qxd7 {[%emt 0:00:36]} ({Wrong is} 19... Rxd7 $2 20. Nxd5 exd5 21. Rxc8+ Bxc8 22. Qc2 $16 {[%mdl 64] Double Attack}) 20. f5 {[%emt 0:00:21]} Nf6 {[%emt 0:03:27]} 21. fxe6 {[%emt 0:00:23]} Qxd4+ {[%emt 0:00:06]} 22. Qxd4 {[%emt 0:00:02]} Rxd4 {[%emt 0:00:02]} 23. exf7+ {[%emt 0:00:14]} Kf8 {[%emt 0:00:36]} 24. Rc2 {[%emt 0:02:15]} Rcd8 {[%emt 0:01:05]} 25. Ne2 {[%emt 0:00:54]} Rd2 {[%emt 0:00:30]} 26. Nf4 {[%emt 0:00:25]} Kxf7 {[%emt 0:00:33]} 27. a3 {[%emt 0:01:01]} Rxc2 {[%emt 0:00:45]} 28. Bxc2 {[%emt 0:00:02]} Rd2 {[%emt 0:01:38]} 29. Rf2 {[%emt 0:00:07]} Rxf2 {[%emt 0:00:29]} 30. Kxf2 {[%emt 0:00:02]} Ke7 {[%emt 0:00:09]} 31. g4 {[%emt 0:00:42]} g5 {[%emt 0:00:20]} 32. Ne2 {[%emt 0:00:22]} Kd6 {[%emt 0:00:34]} 33. Kg3 {[%emt 0:01:26]} Ke5 {[%emt 0:00:19]} 34. h4 {[%emt 0:00:11] [#]} ({White should play} 34. Kf2 $15) 34... h6 {[%emt 0:00:20]} (34... Ne4+ $1 $17 35. Kh3 Ba6) 35. hxg5 $1 {[%emt 0:00:08]} hxg5 {[%emt 0:00:02]} 36. Ng1 {[%emt 0:00:07]} Kd4 {[%emt 0:00:16]} 37. Nh3 {[%emt 0:00:09]} Bc8 {[%emt 0:00:20]} 38. Bd1 {[%emt 0:00:52]} Ne4+ {[%emt 0:00:04]} 39. Kg2 {[%emt 0:00:02]} Ke3 {[%emt 0:00:05]} 40. Bf3 {[%emt 0:00:16]} Nd2 {[%emt 0:00:03]} 41. Bd1 {[%emt 0:00:31]} Bb7+ {[%emt 0:00:05]} 42. Kg1 {[%emt 0:00:02]} Nc4 {[%emt 0:00:29]} 43. b4 {[%emt 0:00:26]} Nxa3 {[%emt 0:00:03]} 44. Nxg5 {[%emt 0:00:02]} Nb5 {[%emt 0:00:06]} 45. Ne6 {[%emt 0:00:06]} (45. Nh3 $17) 45... Bd5 {[%emt 0:00:10]} 46. Nf8 {[%emt 0:00:16]} Nc3 {[%emt 0:00:04]} 47. Bc2 {[%emt 0:00:04]} Kf4 {[%emt 0:00:02]} 48. Bf5 {[%emt 0:00:10]} Na2 {[%emt 0:00:05]} 49. Ng6+ {[%emt 0:00:13]} Kg5 {[%emt 0:00:03]} 50. Ne7 {[%emt 0:00:02]} Nxb4 {[%emt 0:00:03]} 51. Nc8 {[%emt 0:00:02]} Nc6 {[%emt 0:00:05]} 52. Bd7 {[%emt 0:00:16]} Ne5 {[%emt 0:00:04]} 53. Bf5 {[%emt 0:00:07]} Nc6 {[%emt 0:00:29]} 54. Bd7 {[%emt 0:00:05]} Kf4 {[%emt 0:00:03]} 55. Kf2 {[%emt 0:00:36]} Ne5 {[%emt 0:00:05]} 56. Bf5 {[%emt 0:00:02]} b5 {[%emt 0:00:37]} 57. Nxa7 {[%emt 0:00:17]} b4 {[%emt 0:00:02]} 58. Nb5 {[%emt 0:00:08]} Nc6 {[%emt 0:00:18]} 59. Bd7 {[%emt 0:00:15]} Na5 {[%emt 0:00:22]} 60. Ke1 {[%emt 0:00:08]} Nc4 $11 {[%emt 0:00:09]} 61. Nd4 {[%emt 0:00:12]} Ne5 {[%emt 0:00:06]} 62. Bf5 {[%emt 0:00:03]} b3 {[%emt 0:00:15]} 63. Kd2 {[%emt 0:00:18]} Nxg4 {[%emt 0:00:10]} 64. Bxg4 {[%emt 0:00:03]} Kxg4 {[%emt 0:00:01]} 65. Kc3 {[%emt 0:00:01]} Kf4 {[%emt 0:00:01]} 66. Nxb3 {[%emt 0:00:02]} Bxb3 {[%emt 0:00:02]} 1/2-1/2

[Event "Match UKR vs KGZ 2021"]
[Site "Online"]
[Date "2021.02.14"]
[Round "1.7"]
[White "Niezhentsev, Kyrylo"]
[Black "Momunaliev, Ruslan"]
[Result "1-0"]
[ECO "C00"]
[WhiteElo "1628"]
[BlackElo "1324"]
[Annotator "NA RC"]
[PlyCount "77"]
[EventDate "2021.02.14"]
[EventType "team-tourn"]
[EventCountry "NET"]
[SourceTitle "playchess.com"]
[Source "ChessBase"]
[SourceQuality "1"]
[WhiteTeam "Ukraine"]
[BlackTeam "Kyrgyzstan"]
[WhiteTeamCountry "UKR"]
[BlackTeamCountry "KGZ"]
[TimeControl "900+10"]

1. e4 {[%emt 0:00:00]} e6 {[%emt 0:00:18]} 2. Qe2 {[%emt 0:00:05]} c5 {[%emt 0:00:11]} 3. g3 {[%emt 0:00:11]} Nc6 {[%emt 0:00:05]} 4. Nf3 {[%emt 0:00:02]} Nf6 {[%emt 0:00:10]} 5. Bg2 {[%emt 0:00:06]} Be7 {[%emt 0:00:33]} 6. O-O {[%emt 0:00:21]} O-O {[%emt 0:00:08]} 7. d3 {[%emt 0:00:38]} d5 {[%emt 0:00:15]} 8. e5 {[%emt 0:00:03]} Nd7 {[%emt 0:00:10]} 9. c3 {[%emt 0:00:50]} Re8 {[%emt 0:00:42]} 10. h4 {[%emt 0:00:23]} f6 {[%emt 0:00:10]} 11. d4 {[%emt 0:02:27]} fxe5 {[%emt 0:00:57]} 12. dxe5 {[%emt 0:00:09]} Qc7 {[%emt 0:00:30]} 13. Bf4 {[%emt 0:00:06]} Nf8 {[%emt 0:00:13]} 14. h5 {[%emt 0:00:56]} g6 {[%emt 0:00:38]} 15. g4 {[%emt 0:01:46]} gxh5 {[%emt 0:00:37]} 16. gxh5 {[%emt 0:00:04]} Nd7 {[%emt 0:00:04]} 17. Re1 {[%emt 0:00:54]} Rf8 {[%emt 0:00:10]} 18. Bg3 {[%emt 0:00:12]} Rf5 {[%emt 0:00:16]} 19. Bh3 {[%emt 0:00:22]} Rxh5 {[%emt 0:00:23]} 20. Bxe6+ {[%emt 0:00:08]} Kh8 {[%emt 0:00:04]} 21. Bg4 {[%emt 0:00:15]} Rh6 {[%emt 0:01:03]} 22. e6 {[%emt 0:00:13]} Bd6 {[%emt 0:00:20]} 23. e7 {[%emt 0:01:31]} Nf6 {[%emt 0:00:46]} 24. e8=Q+ {[%emt 0:01:28]} Nxe8 {[%emt 0:00:09]} 25. Qxe8+ {[%emt 0:00:03]} Kg7 {[%emt 0:00:03]} 26. Bxd6 {[%emt 0:00:41]} Qxd6 {[%emt 0:03:50]} 27. Bxc8 {[%emt 0:00:39]} Rxc8 {[%emt 0:02:15]} 28. Qxc8 {[%emt 0:01:10]} Qg6+ {[%emt 0:00:08]} 29. Kf1 {[%emt 0:00:03]} Qd3+ {[%emt 0:03:19]} 30. Re2 {[%emt 0:00:06]} Qxf3 {[%emt 0:01:10]} 31. Qxb7+ {[%emt 0:00:42]} Kf8 {[%emt 0:00:06]} 32. Qc8+ {[%emt 0:00:06]} Kf7 {[%emt 0:00:12]} 33. Qd7+ {[%emt 0:00:44]} Kg6 {[%emt 0:00:17]} 34. Qxc6+ {[%emt 0:00:55]} Kg5 {[%emt 0:00:15]} 35. Re5+ {[%emt 0:00:06]} Kg4 {[%emt 0:00:04]} 36. Qxh6 {[%emt 0:00:13]} Qd1+ {[%emt 0:00:02]} 37. Kg2 {[%emt 0:00:04]} Qf3+ {[%emt 0:00:02]} 38. Kg1 {[%emt 0:00:04]} Qd1+ {[%emt 0:00:02]} 39. Kh2 {[%emt 0:00:01]} 1-0

[Event "Match UKR vs KGZ 2021"]
[Site "Online"]
[Date "2021.02.14"]
[Round "1.10"]
[White "Berdibaeva, Edisa"]
[Black "Alekseenko, Yuliya"]
[Result "1/2-1/2"]
[ECO "B45"]
[WhiteElo "1272"]
[BlackElo "1760"]
[Annotator "NA RC"]
[PlyCount "147"]
[EventDate "2021.02.14"]
[EventType "team-tourn"]
[EventCountry "NET"]
[SourceTitle "playchess.com"]
[Source "ChessBase"]
[SourceQuality "1"]
[WhiteTeam "Kyrgyzstan"]
[BlackTeam "Ukraine"]
[WhiteTeamCountry "KGZ"]
[BlackTeamCountry "UKR"]
[TimeControl "900+10"]

1. e4 {[%emt 0:00:00]} c5 {[%emt 0:00:03]} 2. Nf3 {[%emt 0:00:04]} e6 {[%emt 0:00:01]} 3. d4 {[%emt 0:00:04]} cxd4 {[%emt 0:00:02]} 4. Nxd4 {[%emt 0:00:03]} Nf6 {[%emt 0:00:02]} 5. Nc3 {[%emt 0:00:04]} Nc6 {[%emt 0:00:05]} 6. Ndb5 {[%emt 0:00:08]} Bb4 {[%emt 0:00:02]} 7. a3 {[%emt 0:00:06]} Bxc3+ {[%emt 0:00:03]} 8. Nxc3 {[%emt 0:00:05]} d5 {[%emt 0:00:02]} 9. exd5 {[%emt 0:00:08]} exd5 {[%emt 0:00:04]} 10. Bd3 {[%emt 0:00:07]} O-O {[%emt 0:00:10]} 11. O-O {[%emt 0:00:04]} h6 {[%emt 0:00:38]} 12. h3 {[%emt 0:00:23]} Re8 {[%emt 0:00:38]} 13. b3 {[%emt 0:00:48]} Be6 {[%emt 0:02:56]} 14. Bb2 {[%emt 0:00:45]} a6 {[%emt 0:02:09]} 15. Qd2 {[%emt 0:02:07]} Qd6 {[%emt 0:02:22]} 16. Rad1 {[%emt 0:01:24]} Rad8 {[%emt 0:00:30]} 17. Ne2 {[%emt 0:01:28]} Ne5 {[%emt 0:03:56]} 18. Ng3 {[%emt 0:02:43]} Nxd3 {[%emt 0:01:37]} 19. Qxd3 {[%emt 0:00:21]} Qf4 {[%emt 0:01:04]} 20. Rfe1 {[%emt 0:01:38]} Ne4 {[%emt 0:01:17]} 21. Nxe4 {[%emt 0:01:49]} dxe4 {[%emt 0:00:07]} 22. Qc3 {[%emt 0:00:32]} f6 {[%emt 0:00:21]} 23. Qb4 {[%emt 0:00:51]} Bd5 {[%emt 0:00:22]} 24. Qb6 {[%emt 0:00:50]} Rd6 {[%emt 0:00:11]} 25. Qe3 {[%emt 0:00:31]} Qf5 {[%emt 0:00:11]} 26. c4 {[%emt 0:00:12]} Red8 {[%emt 0:00:17]} 27. cxd5 {[%emt 0:00:06]} Rxd5 {[%emt 0:00:02]} 28. Rxd5 {[%emt 0:00:15]} Qxd5 {[%emt 0:00:02]} 29. Qxe4 {[%emt 0:00:09]} Qxb3 {[%emt 0:00:04]} 30. Qe6+ {[%emt 0:00:29]} Qxe6 {[%emt 0:00:03]} 31. Rxe6 {[%emt 0:00:01]} Rd1+ {[%emt 0:00:04]} 32. Kh2 {[%emt 0:00:04]} Rd2 {[%emt 0:00:02]} 33. Rb6 {[%emt 0:00:05]} Rxf2 {[%emt 0:00:28]} 34. Rxb7 {[%emt 0:00:05]} Rc2 {[%emt 0:00:03]} 35. Rb6 {[%emt 0:00:32]} Kf7 {[%emt 0:00:16]} 36. Bd4 {[%emt 0:00:11]} Rc4 {[%emt 0:00:08]} 37. Bg1 {[%emt 0:00:13]} Ra4 {[%emt 0:00:07]} 38. Bc5 {[%emt 0:00:07]} Rc4 {[%emt 0:00:33]} 39. Bb4 {[%emt 0:00:05]} Rc2 {[%emt 0:00:05]} 40. Rxa6 {[%emt 0:00:03]} g5 {[%emt 0:00:07]} 41. Rd6 {[%emt 0:00:09]} h5 {[%emt 0:00:05]} 42. Rd2 {[%emt 0:00:23]} Rc7 {[%emt 0:00:06]} 43. Ra2 {[%emt 0:00:12]} Ke6 {[%emt 0:00:17]} 44. Rd2 {[%emt 0:00:12]} Rc6 {[%emt 0:00:06]} 45. a4 {[%emt 0:00:35]} f5 {[%emt 0:00:15]} 46. a5 {[%emt 0:00:12]} f4 {[%emt 0:00:11]} 47. Ra2 {[%emt 0:00:16]} Ra6 {[%emt 0:00:18]} 48. g4 {[%emt 0:00:12]} fxg3+ {[%emt 0:00:15]} 49. Kxg3 {[%emt 0:00:02]} Kd5 {[%emt 0:00:01]} 50. Rc2 {[%emt 0:00:06]} Kd4 {[%emt 0:00:17]} 51. Rc5 {[%emt 0:00:08]} Rg6 {[%emt 0:00:05]} 52. Rb5 {[%emt 0:00:49]} g4 {[%emt 0:00:12]} 53. Rxh5 {[%emt 0:00:15]} gxh3+ {[%emt 0:00:03]} 54. Kxh3 {[%emt 0:00:02]} Kc4 {[%emt 0:00:06]} 55. Be1 {[%emt 0:00:14]} Re6 {[%emt 0:00:14]} 56. Bg3 {[%emt 0:00:05]} Kb4 {[%emt 0:00:12]} 57. Bc7 {[%emt 0:00:20]} Rc6 {[%emt 0:00:07]} 58. Bb6 {[%emt 0:00:06]} Kc4 {[%emt 0:00:15]} 59. Kg4 {[%emt 0:00:18]} Rf6 {[%emt 0:00:18]} 60. Re5 {[%emt 0:00:11]} Kb4 {[%emt 0:00:10]} 61. Kg5 {[%emt 0:00:04]} Rc6 {[%emt 0:00:05]} 62. Kf5 {[%emt 0:00:05]} Kc4 {[%emt 0:00:08]} 63. Ke4 {[%emt 0:00:20]} Rh6 {[%emt 0:00:09]} 64. Rc5+ {[%emt 0:00:07]} Kb4 {[%emt 0:00:03]} 65. Rf5 {[%emt 0:00:23]} Kc4 {[%emt 0:00:14]} 66. Ke5 {[%emt 0:00:05]} Kb5 {[%emt 0:00:06]} 67. Kd4+ {[%emt 0:00:06]} Kc6 {[%emt 0:00:12]} 68. Rc5+ {[%emt 0:00:10]} Kb7 {[%emt 0:00:04]} 69. Kc4 {[%emt 0:00:05]} Rc6 {[%emt 0:00:25]} 70. Kb5 {[%emt 0:00:13]} Rxc5+ {[%emt 0:00:04]} 71. Bxc5 {[%emt 0:00:03]} Ka8 {[%emt 0:00:04]} 72. a6 {[%emt 0:00:06]} Kb8 {[%emt 0:00:05]} 73. a7+ {[%emt 0:00:04]} Ka8 {[%emt 0:00:10]} 74. Kb6 {[%emt 0:00:03]} 1/2-1/2

[Event "Match UKR vs KGZ 2021"]
[Site "Online"]
[Date "2021.02.14"]
[Round "1.12"]
[White "Momunkulova, Imannur"]
[Black "Petrenko, Maryna"]
[Result "1/2-1/2"]
[ECO "B04"]
[WhiteElo "1294"]
[BlackElo "1511"]
[Annotator "NA RC"]
[PlyCount "141"]
[EventDate "2021.02.14"]
[EventType "team-tourn"]
[EventCountry "NET"]
[SourceTitle "playchess.com"]
[Source "ChessBase"]
[SourceQuality "1"]
[WhiteTeam "Kyrgyzstan"]
[BlackTeam "Ukraine"]
[WhiteTeamCountry "KGZ"]
[BlackTeamCountry "UKR"]
[TimeControl "900+10"]

1. e4 {[%emt 0:00:00]} Nf6 {[%emt 0:00:09]} 2. e5 {[%emt 0:00:03]} Nd5 {[%emt 0:00:02]} 3. d4 {[%emt 0:00:02]} d6 {[%emt 0:00:04]} 4. Nf3 {[%emt 0:00:03]} Nc6 {[%emt 0:00:10]} 5. Bb5 {[%emt 0:00:11]} a6 {[%emt 0:00:33]} 6. Ba4 {[%emt 0:00:10]} Nb6 {[%emt 0:00:44]} 7. Bxc6+ {[%emt 0:00:34]} bxc6 {[%emt 0:00:04]} 8. O-O {[%emt 0:00:06]} Bf5 {[%emt 0:00:33]} 9. Nc3 {[%emt 0:00:52]} e6 {[%emt 0:00:35]} 10. Qe2 {[%emt 0:00:51]} Be7 {[%emt 0:00:42]} 11. Bf4 {[%emt 0:00:15]} O-O {[%emt 0:00:13]} 12. exd6 {[%emt 0:00:26]} cxd6 {[%emt 0:00:17]} 13. Ne4 {[%emt 0:00:04]} d5 {[%emt 0:00:23]} 14. Nc5 {[%emt 0:00:26]} Nd7 {[%emt 0:00:54]} 15. Ne5 {[%emt 0:00:11]} Nxe5 {[%emt 0:00:19]} 16. Bxe5 {[%emt 0:00:13]} Qa5 {[%emt 0:00:39]} 17. Nd3 {[%emt 0:00:33]} c5 {[%emt 0:00:39]} 18. dxc5 {[%emt 0:00:22]} Bxc5 {[%emt 0:00:05]} 19. Nxc5 {[%emt 0:00:02]} Qxc5 {[%emt 0:00:05]} 20. c3 {[%emt 0:00:02]} a5 {[%emt 0:00:36]} 21. Bd4 {[%emt 0:00:24]} Qc7 {[%emt 0:00:49]} 22. b4 {[%emt 0:00:44]} Qd7 {[%emt 0:01:48]} 23. b5 {[%emt 0:01:19]} a4 {[%emt 0:01:36]} 24. Rfd1 {[%emt 0:00:54]} Rfc8 {[%emt 0:00:47]} 25. g4 {[%emt 0:00:38]} Bg6 {[%emt 0:00:48]} 26. h4 {[%emt 0:01:01]} h6 {[%emt 0:01:20]} 27. g5 {[%emt 0:00:05]} Qe7 {[%emt 0:01:27]} 28. gxh6 {[%emt 0:01:21]} gxh6 {[%emt 0:00:27]} 29. Qe5 {[%emt 0:00:04]} f6 {[%emt 0:00:22]} 30. Qxf6 {[%emt 0:00:03]} Qxf6 {[%emt 0:00:04]} 31. Bxf6 {[%emt 0:00:02]} Rab8 {[%emt 0:00:20]} 32. Rd4 {[%emt 0:01:08]} Rxb5 {[%emt 0:00:59]} 33. Rxa4 {[%emt 0:01:29]} Kf7 {[%emt 0:00:18]} 34. Be5 {[%emt 0:02:05]} Be4 {[%emt 0:00:28]} 35. Ra7+ {[%emt 0:00:44]} Kg6 {[%emt 0:00:55]} 36. a4 {[%emt 0:00:19]} Rb3 {[%emt 0:00:09]} 37. a5 {[%emt 0:00:25]} Kf5 {[%emt 0:00:04]} 38. f4 {[%emt 0:00:06]} Rg8+ {[%emt 0:00:06]} 39. Rg7 {[%emt 0:00:07]} Rxg7+ {[%emt 0:00:13]} 40. Bxg7 {[%emt 0:00:03]} Kg6 {[%emt 0:00:04]} 41. Be5 {[%emt 0:00:16]} Rb7 {[%emt 0:00:21]} 42. a6 {[%emt 0:00:06]} Ra7 {[%emt 0:00:08]} 43. Bd4 {[%emt 0:00:17]} Ra8 {[%emt 0:00:02]} 44. a7 {[%emt 0:00:13]} Kh5 {[%emt 0:00:07]} 45. Ra2 {[%emt 0:00:44]} Bg6 {[%emt 0:00:33]} 46. Rb2 {[%emt 0:00:19]} Be8 {[%emt 0:00:10]} 47. Rb8 {[%emt 0:00:28]} Bc6 {[%emt 0:00:04]} 48. Kf2 {[%emt 0:00:08]} Kxh4 {[%emt 0:00:17]} 49. Rb6 {[%emt 0:00:16]} Bd7 {[%emt 0:00:10]} 50. Rd6 {[%emt 0:00:07]} Bc8 {[%emt 0:00:06]} 51. f5 {[%emt 0:00:15]} exf5 {[%emt 0:00:14]} 52. Rxh6+ {[%emt 0:00:04]} Kg5 {[%emt 0:00:11]} 53. Rd6 {[%emt 0:00:11]} Bb7 {[%emt 0:00:08]} 54. Rb6 {[%emt 0:01:12]} Rxa7 {[%emt 0:00:21]} 55. Rb2 {[%emt 0:00:03]} Ra1 {[%emt 0:00:10]} 56. Rxb7 {[%emt 0:00:04]} Ra5 {[%emt 0:00:06]} 57. Rg7+ {[%emt 0:00:09]} Kf4 {[%emt 0:00:06]} 58. Ra7 {[%emt 0:00:05]} Rb5 {[%emt 0:00:04]} 59. Ra4 {[%emt 0:00:12]} Rb2+ {[%emt 0:00:11]} 60. Ke1 {[%emt 0:00:04]} Kf3 {[%emt 0:00:17]} 61. c4 {[%emt 0:00:26]} Rb1+ {[%emt 0:00:03]} 62. Kd2 {[%emt 0:00:03]} dxc4 {[%emt 0:00:02]} 63. Rxc4 {[%emt 0:00:04]} Rf1 {[%emt 0:00:13]} 64. Be5 {[%emt 0:00:28]} Kg2 {[%emt 0:00:11]} 65. Ke2 {[%emt 0:00:07]} Rf2+ {[%emt 0:00:06]} 66. Ke1 {[%emt 0:00:03]} Rf1+ {[%emt 0:00:03]} 67. Kd2 {[%emt 0:00:03]} Rf3 {[%emt 0:00:18]} 68. Rc2 {[%emt 0:00:26]} Rf2+ {[%emt 0:00:07]} 69. Kd3 {[%emt 0:00:07]} Rxc2 {[%emt 0:00:03]} 70. Kxc2 {[%emt 0:00:02]} f4 {[%emt 0:00:01]} 71. Bxf4 {[%emt 0:00:03]} 1/2-1/2

[Event "Match UKR vs KGZ 2021"]
[Site "Online"]
[Date "2021.02.14"]
[Round "1.13"]
[White "Toroptseva, Yevheniia"]
[Black "Sezdbekova, Aizhan"]
[Result "0-1"]
[ECO "C30"]
[WhiteElo "1655"]
[BlackElo "1442"]
[Annotator "NA RC"]
[PlyCount "170"]
[EventDate "2021.02.14"]
[EventType "team-tourn"]
[EventCountry "NET"]
[SourceTitle "playchess.com"]
[Source "ChessBase"]
[SourceQuality "1"]
[WhiteTeam "Ukraine"]
[BlackTeam "Kyrgyzstan"]
[WhiteTeamCountry "UKR"]
[BlackTeamCountry "KGZ"]
[TimeControl "900+10"]

1. e4 {[%emt 0:00:00]} e5 {[%emt 0:00:05]} 2. Nc3 {[%emt 0:00:03]} Nf6 {[%emt 0:00:06]} 3. f4 {[%emt 0:00:02]} d6 {[%emt 0:00:10]} 4. Nf3 {[%emt 0:00:05]} Nc6 {[%emt 0:00:05]} 5. Bb5 {[%emt 0:00:03]} exf4 {[%emt 0:00:04]} 6. d4 {[%emt 0:00:03]} Bd7 {[%emt 0:00:06]} 7. Bxf4 {[%emt 0:00:07]} Be7 {[%emt 0:00:05]} 8. O-O {[%emt 0:00:05]} O-O {[%emt 0:00:04]} 9. Kh1 {[%emt 0:00:48]} a6 {[%emt 0:00:12]} 10. Bd3 {[%emt 0:00:05]} Bg4 {[%emt 0:00:13]} 11. Ne2 {[%emt 0:00:55]} Bxf3 {[%emt 0:00:33]} 12. Rxf3 {[%emt 0:00:03]} d5 {[%emt 0:00:03]} 13. e5 {[%emt 0:00:05]} Ne4 {[%emt 0:00:07]} 14. c3 {[%emt 0:00:50]} f5 {[%emt 0:03:57]} 15. exf6 {[%emt 0:00:36]} Nxf6 {[%emt 0:00:25]} 16. Ng3 {[%emt 0:01:37]} Bd6 {[%emt 0:00:15]} 17. Bxd6 {[%emt 0:00:07]} Qxd6 {[%emt 0:00:07]} 18. Nf5 {[%emt 0:00:14]} Qd7 {[%emt 0:00:14]} 19. Rg3 {[%emt 0:00:09]} g6 {[%emt 0:00:44]} 20. Nh4 {[%emt 0:01:39]} Ne7 {[%emt 0:01:05]} 21. Nf3 {[%emt 0:00:45]} Ne4 {[%emt 0:01:20]} 22. Bxe4 {[%emt 0:00:20]} dxe4 {[%emt 0:00:05]} 23. Ne5 {[%emt 0:00:02]} Qe6 {[%emt 0:00:27]} 24. Re3 {[%emt 0:00:38]} Nd5 {[%emt 0:00:39]} 25. Rxe4 {[%emt 0:00:07]} Qf5 {[%emt 0:00:04]} 26. Qf3 {[%emt 0:00:27]} Qxf3 {[%emt 0:01:04]} 27. Nxf3 {[%emt 0:00:03]} c6 {[%emt 0:00:42]} 28. h3 {[%emt 0:00:22]} Rae8 {[%emt 0:01:01]} 29. Rae1 {[%emt 0:00:08]} Rd8 {[%emt 0:00:22]} 30. Ng5 {[%emt 0:00:35]} Rd7 {[%emt 0:01:19]} 31. Ne6 {[%emt 0:00:46]} Rf2 {[%emt 0:00:48]} 32. Nc5 {[%emt 0:00:12]} Rdf7 {[%emt 0:00:19]} 33. Re8+ {[%emt 0:00:06]} Kg7 {[%emt 0:00:06]} 34. Ne6+ {[%emt 0:00:05]} Kh6 {[%emt 0:00:08]} 35. Re4 {[%emt 0:01:20]} g5 {[%emt 0:00:34]} 36. Rg8 {[%emt 0:01:24]} Nf6 {[%emt 0:01:38]} 37. Nxg5 {[%emt 0:01:57]} Nxe4 {[%emt 0:00:26]} 38. Nxf7+ {[%emt 0:00:33]} Rxf7 {[%emt 0:00:06]} 39. Kg1 {[%emt 0:00:09]} Nd2 {[%emt 0:00:06]} 40. Rd8 {[%emt 0:00:46]} Nc4 {[%emt 0:00:09]} 41. b3 {[%emt 0:00:09]} Ne3 {[%emt 0:00:05]} 42. c4 {[%emt 0:00:15]} Rg7 {[%emt 0:00:27]} 43. Rd6+ {[%emt 0:00:17]} Kh5 {[%emt 0:00:06]} 44. g4+ {[%emt 0:00:07]} Kh4 {[%emt 0:00:04]} 45. Kf2 {[%emt 0:00:50]} Nd1+ {[%emt 0:00:05]} 46. Ke2 {[%emt 0:00:20]} Nc3+ {[%emt 0:00:03]} 47. Kd3 {[%emt 0:00:02]} Nxa2 {[%emt 0:00:04]} 48. Rh6+ {[%emt 0:00:04]} Kg3 {[%emt 0:00:06]} 49. Rh5 {[%emt 0:00:12]} b6 {[%emt 0:00:15]} 50. d5 {[%emt 0:00:17]} cxd5 {[%emt 0:00:09]} 51. cxd5 {[%emt 0:00:02]} Nb4+ {[%emt 0:00:17]} 52. Kc4 {[%emt 0:00:21]} Nc2 {[%emt 0:00:08]} 53. d6 {[%emt 0:00:12]} Ne3+ {[%emt 0:00:16]} 54. Kd4 {[%emt 0:00:03]} Kf4 {[%emt 0:00:11]} 55. Rh6 {[%emt 0:00:30]} a5 {[%emt 0:00:14]} 56. Re6 {[%emt 0:00:55]} Nc2+ {[%emt 0:00:06]} 57. Kc3 {[%emt 0:00:09]} Nb4 {[%emt 0:00:10]} 58. Kd4 {[%emt 0:00:36]} Rd7 {[%emt 0:00:15]} 59. Rf6+ {[%emt 0:00:12]} Kg5 {[%emt 0:00:06]} 60. Rf5+ {[%emt 0:00:07]} Kg6 {[%emt 0:00:06]} 61. Ke5 {[%emt 0:00:09]} Rd8 {[%emt 0:00:04]} 62. Ke6 {[%emt 0:00:20]} Nc6 {[%emt 0:00:10]} 63. Rf6+ {[%emt 0:00:19]} Kg5 {[%emt 0:00:23]} 64. Rf7 {[%emt 0:00:15]} Nd4+ {[%emt 0:00:08]} 65. Ke7 {[%emt 0:00:02]} Nc6+ {[%emt 0:00:04]} 66. Ke6 {[%emt 0:00:02]} Nd4+ {[%emt 0:00:04]} 67. Kd5 {[%emt 0:00:05]} Nxb3 {[%emt 0:00:04]} 68. Rf5+ {[%emt 0:00:11]} Kg6 {[%emt 0:00:06]} 69. h4 {[%emt 0:00:03]} a4 {[%emt 0:00:05]} 70. h5+ {[%emt 0:00:02]} Kh6 {[%emt 0:00:06]} 71. Re5 {[%emt 0:00:10]} b5 {[%emt 0:00:18]} 72. Kc6 {[%emt 0:00:27]} b4 {[%emt 0:00:23]} 73. d7 {[%emt 0:00:16]} a3 {[%emt 0:00:08]} 74. Kc7 {[%emt 0:00:41]} Rxd7+ {[%emt 0:00:07]} 75. Kxd7 {[%emt 0:00:02]} a2 {[%emt 0:00:03]} 76. Ke7 {[%emt 0:00:02]} a1=Q {[%emt 0:00:10]} 77. Kf6 {[%emt 0:00:02]} Nc5 {[%emt 0:00:37]} 78. g5+ {[%emt 0:00:06]} Kxh5 {[%emt 0:00:07]} 79. g6+ {[%emt 0:00:01]} Qxe5+ {[%emt 0:00:26]} 80. Kf7 {[%emt 0:00:08]} Qe6+ {[%emt 0:00:07]} 81. Kg7 {[%emt 0:00:07]} Qxg6+ {[%emt 0:00:09]} 82. Kh8 {[%emt 0:00:03]} Qe4 {[%emt 0:00:26]} 83. Kg7 {[%emt 0:00:03]} Nd7 {[%emt 0:00:07]} 84. Kh8 {[%emt 0:00:05]} Kg6 {[%emt 0:00:10]} 85. Kg8 {[%emt 0:00:04]} Qe8# {[%emt 0:00:04]} 0-1